Cogmind - Beta 9.3 @@@ ROGUE MODE // 2019.12.31 @ 17:26:58 Player: Cipherpunk Result: Destroyed by P-60 Hacker with Shock Rifle Performance ------------- Evolutions (4) 2000 Regions Visited (9) 1800 Robots Destroyed (158) 790 Value Destroyed (5561) 5561 Prototype IDs (29) 580 Alien Tech Used (0) 0 Bonus (1167) 1167 TOTAL SCORE: 11898 Bonus ------- High Alert Combat Kills 397 Follower Combat Kills 82 Entered Garrisons 200 Used RIF Installer 500 Aligned with FarCom 300 Friendly Fire -312 Cogmind --------- Core Integrity 0/850 Matter 56/300 Energy 99/100 System Corruption 9% Temperature Cool (0) Movement Walking (150) Ox1 Location -6/Factory Parts ------- > --- POWER (1) -------- (None) > --- PROPULSION (4) --- Carbon-fiber Leg > --- UTILITY (7) ------ Large Storage Unit Relay Coupler [Sentry] (15) > --- WEAPON (3) ------- Chainsword Chainsword > --- INVENTORY (10) --- Light Fission Core Large Storage Unit Improved Targeting Computer Improved Targeting Computer Improved Melee Analysis Suite Target Analyzer Relay Coupler [Sentry] (25) Peak State ------------ > --- POWER ------------ Light Angular Momentum Engine > --- PROPULSION ------- Improved Carbon-fiber Leg Improved Carbon-fiber Leg Improved Carbon-fiber Leg Improved Carbon-fiber Leg > --- UTILITY ---------- Large Storage Unit High-capacity Storage Unit Modified TNC Weapon Cycler Improved Light Armor Plating > --- WEAPON ----------- Advanced Beam Rifle Enhanced Autogun Flak Cannon > --- INVENTORY -------- Light Nuclear Core Titanium Leg Titanium Leg Improved Titanium Leg Cryofiber Web Coolant Injector Advanced Terrain Scan Processor Weapon Cycler Improved Light Armor Plating System Backup Module Recalibrator Arc Projector Arc Projector Arc Projector Flak Cannon Rocket Launcher Power Maul Chainsword [Rating: 53] Favorites ----------- Power Light Nuclear Core Engine Ion Engine Power Core Light Nuclear Core Propulsion Aluminum Leg Treads Advanced Treads Leg Aluminum Leg Hover Unit Cooled Airjet Utility Large Storage Unit Device Improved Heat Sink Storage Large Storage Unit Processor Modified TNC Hackware Relay Coupler [NC] Protection Improved Light Armor Plating Weapon Coil Gun Energy Gun Advanced Beam Rifle Energy Cannon Proton Cannon Ballistic Gun Coil Gun Ballistic Cannon Flak Cannon Launcher Grenade Launcher Special Weapon Remote Datajack Slashing Weapon Chainsword Build | -11 -10 -10 -10 -9 -8 -7 -7 -7 -6 ------- Run | Scr Mat Min Exi Min Mat Fac Gar Fac Fac Slots Evolved 8 | . . . . . 4 2 . . 2 Power . | . . . . . . . . . . Propulsion 2 | . . . . . 1 1 . . . Utility 5 | . . . . . 2 1 . . 2 Weapon 1 | . . . . . 1 . . . . Parts Attached 183 | . 8 9 . 3 37 9 37 46 34 Power 16 | . 1 1 . . 3 1 4 4 2 Engine 6 | . 1 1 . . 2 1 . 1 . Core 10 | . . . . . 1 . 4 3 2 Reactor . | . . . . . . . . . . Propulsion 41 | . 2 2 . . 12 1 7 13 4 Treads 2 | . . . . . . . . . 2 Leg 34 | . 2 2 . . 12 1 7 8 2 Wheel . | . . . . . . . . . . Hover 5 | . . . . . . . . 5 . Flight . | . . . . . . . . . . Utility 40 | . 3 . . . 8 5 6 11 7 Device 8 | . . . . . 3 1 3 1 . Storage 12 | . 3 . . . 2 3 . 2 2 Processor 1 | . . . . . 1 . . . . Hackware 6 | . . . . . . . . 5 1 Protection 13 | . . . . . 2 1 3 3 4 Artifact . | . . . . . . . . . . Weapon 86 | . 2 6 . 3 14 2 20 18 21 Energy Gun 19 | . . . . 1 9 . 5 2 2 Energy Cannon 1 | . . . . . . . . . 1 Ballistic Gun 21 | . 1 3 . . 1 1 5 5 5 Ballistic Cannon 11 | . 1 1 . 1 1 1 2 1 3 Launcher 7 | . . 2 . 1 2 . 2 . . Special Weapon 14 | . . . . . . . . 8 6 Impact Weapon . | . . . . . . . . . . Slashing Weapon 13 | . . . . . 1 . 6 2 4 Piercing Weapon . | . . . . . . . . . . Special Melee Weapon . | . . . . . . . . . . Unidentified Prototypes 2 | . . . . . 2 . . . . Parts Lost 69 | . 2 4 . . 16 . 20 6 21 Power 8 | . . . . . 2 . 3 1 2 Propulsion 24 | . . 2 . . 6 . 7 3 6 Utility 11 | . . . . . 2 . 3 2 4 Weapon 26 | . 2 2 . . 6 . 7 . 9 Highest Loss Streak 19 | . 1 3 . . 8 . 12 3 19 Average Slot Usage (%) 96 | . 97 100 100 99 92 99 94 98 91 Engine 5 | . 14 14 14 14 6 7 1 . . Core 3 | . . . . . 1 . 5 7 4 Leg 26 | . 28 28 28 28 24 29 29 22 21 Hover 1 | . . . . . . . . 6 . Device 5 | . . . . . 6 7 12 6 . Storage 17 | . 25 28 28 28 18 15 15 15 12 Processor 2 | . . . . . 9 7 . . . Hackware 3 | . . . . . . . . 8 18 Protection 4 | . . . . . 1 7 6 5 11 Energy Gun 3 | . . . . 5 12 7 3 1 . Ballistic Gun 12 | . 20 16 28 10 . 6 11 16 12 Ballistic Cannon 2 | . 6 10 . 5 3 1 3 . 1 Slashing Weapon 2 | . . . . . 6 5 2 1 3 Naked Turns . | . . . . . . . . . . Heaviest Build 90 | 11 25 27 23 33 60 72 90 74 60 Greatest Support 72 | 20 20 20 20 20 54 72 72 64 66 Greatest Overweight (x) 15 | . 1 1 1 1 15 . 4 5 14 Average Overweight (x) . | . . 1 1 1 . . . . . Largest Inventory Capacity 20 | 6 12 12 12 12 16 20 18 18 16 Average Capacity 15 | 6 10 12 12 12 15 17 18 17 15 Most Carried 18 | 6 12 12 12 12 16 18 18 18 16 Average Carried 14 | 6 9 11 11 11 11 17 17 17 14 Final Capacity 18 | 6 12 12 12 12 16 18 18 16 10 Final Carried 18 | 6 12 11 12 12 16 18 18 16 7 Class Distribution -------------------- 31% | Mutant 22% | Bothacker-Mutant 21% | Scavenger-Mutant 10% | Scavenger-Skirmisher 6% | Skirmisher 6% | Bothacker-Skirmisher Dominant Class ---------------- Mutant | -10/Materials Scavenger-Mutant | -10/Mines Scavenger-Mutant | -10/Exiles Scavenger-Mutant | -9/Mines Scavenger-Mutant | -8/Materials Mutant | -7/Factory Scavenger-Skirmisher | -7/Garrison Bothacker-Mutant | -7/Factory Bothacker-Mutant | -6/Factory Resources | -11 -10 -10 -10 -9 -8 -7 -7 -7 -6 ----------- Run | Scr Mat Min Exi Min Mat Fac Gar Fac Fac Matter Collected 4298 | 200 203 168 . 39 719 173 783 1325 688 Remotely 151 | . . . . . 151 . . . . Salvage Created 5044 | . 414 180 . 21 1151 320 824 1235 899 Parts 266 | . 36 6 . . 52 24 41 70 37 Haulers Intercepted 7 | . 2 . . . 3 . . 1 1 Recyclers Shooed 5 | . . 1 . . 1 . . 1 2 Parts Field Recycled . | . . . . . . . . . . Retrieved Matter . | . . . . . . . . . . Parts Self-Destructed . | . . . . . . . . . . Prevented . | . . . . . . . . . . Kills | -11 -10 -10 -10 -9 -8 -7 -7 -7 -6 ------- Run | Scr Mat Min Exi Min Mat Fac Gar Fac Fac Combat Hostiles Destroyed 121 | . 9 19 . 2 22 7 27 19 16 Melee 6 | . . . . . 4 . 1 . 1 Guns 66 | . 8 4 . . 11 6 8 19 10 Cannons 24 | . 1 5 . . 2 1 10 . 5 AOE 24 | . . 10 . 2 4 . 8 . . Classes Destroyed 16 | . 5 2 . . 4 2 1 1 1 Worker 11 | . . 1 . . 1 1 . 7 1 Builder 4 | . . . . . . . . 3 1 Tunneler 2 | . . . . . . 1 . 1 . Hauler 7 | . 2 . . . 3 . . 1 1 Recycler 5 | . . . . . 2 . . 3 . Operator 1 | . 1 . . . . . . . . Drone 1 | . . . . . . . . . 1 Watcher 6 | . 2 . . . 1 1 1 . 1 Swarmer 26 | . 3 . . 2 . 3 9 8 1 Grunt 52 | . 6 3 . . 15 2 13 4 9 Brawler 4 | . . . . . 1 . 1 2 . Duelist 1 | . . . . . . . 1 . . Sentry 12 | . . . . . 5 . 3 1 3 Hunter 1 | . . . . . 1 . . . . Programmer 9 | . . . . . . 2 . 4 3 Assembled 16 | . . 16 . . . . . . . Best Kill Streak 17 | . 5 17 . 2 5 3 9 10 4 Combat Bots Only 16 | . 4 16 . 2 5 3 9 3 4 Max Kills in Single Turn 5 | . 1 5 . 2 2 2 3 3 2 Gunslinging . | . . . . . . . . . . Exploded 4 | . . 4 . 2 1 . 3 . . Melee 1 | . . . . . 1 . 1 . 1 Uniques/NPCs Destroyed . | . . . . . . . . . . Combat | -11 -10 -10 -10 -9 -8 -7 -7 -7 -6 -------- Run | Scr Mat Min Exi Min Mat Fac Gar Fac Fac Damage Taken 12131 | . 382 632 . 85 2146 258 3418 1404 3806 Core 1923 | . 45 81 . . 319 17 492 118 851 Absorbed by Shields . | . . . . . . . . . . Core Remaining (%) 50 | 100 . . . 49 42 . . 10 . Volleys Fired 391 | . 59 28 . 1 62 23 68 74 76 Largest 3 | . 2 2 . 2 3 3 3 3 3 Hottest 178 | . 55 70 . 50 178 130 155 110 123 Shots Fired 829 | . 118 54 . 2 136 52 153 171 143 Gun 585 | . 106 24 . 1 94 46 84 151 79 Cannon 196 | . 12 25 . . 36 6 63 4 50 Launcher 18 | . . 5 . 1 6 . 6 . . Special 30 | . . . . . . . . 16 14 Kinetic 633 | . 118 49 . 1 51 29 121 142 122 Thermal 97 | . . . . . 66 23 8 . . Explosive 18 | . . 5 . 1 6 . 6 . . Electromagnetic 51 | . . . . . 13 . 18 13 7 Robot Hit Streak 15 | . 8 6 . 1 15 11 10 13 9 Robot Miss Streak 9 | . 6 6 . 2 8 5 9 4 8 Penetration Max 2 | . . . . . . . . 2 1 Secondary Targets 5 | . 1 . . . . . 1 3 . Max Gunslinging Chain 1 | . 1 . . . . . 1 1 . Shots Hit Robots 562 | . 81 30 . 1 103 34 101 105 107 Core Hits 339 | . 33 41 . 2 61 15 77 47 63 Critical Hits 13 | . 1 . . . 2 1 1 5 3 Critical Kills 7 | . 1 . . . . 1 1 2 2 Critical Parts Destroyed 5 | . . . . . 2 . . 2 1 Melee Attacks 52 | . . . . . 15 5 9 6 17 Impact . | . . . . . . . . . . Slashing 52 | . . . . . 15 5 9 6 17 Piercing . | . . . . . . . . . . Sneak Attacks 4 | . . . . . 2 . . . 2 Combat Hostiles . | . . . . . . . . . . Follow-up Attacks . | . . . . . . . . . . Damage Inflicted 13989 | . 724 1275 . 140 3096 589 3063 2716 2386 Guns 7301 | . 604 157 . . 1444 550 703 2567 1276 Cannons 2245 | . 116 222 . . 401 39 851 69 547 Explosions 3371 | . . 896 . 140 683 . 1425 53 174 Melee 1012 | . . . . . 568 . 63 . 381 Ramming 60 | . 4 . . . . . 21 27 8 Kinetic 7584 | . 720 379 . . 612 269 1286 2564 1754 Thermal 1698 | . . . . . 1087 320 197 53 41 Explosive 3180 | . . 896 . 140 683 . 1328 . 133 Electromagnetic 455 | . . . . . 146 . 168 72 69 Impact . | . . . . . . . . . . Slashing 1012 | . . . . . 568 . 63 . 381 Piercing . | . . . . . . . . . . Highest Corruption 9 | . . . . 1 . 1 1 3 9 Average Corruption 2 | . . . . 1 . 1 1 2 3 Corruption Purged 1 | . . . . . . . 1 . . Effects 30 | . . . . 1 . 1 2 18 8 Message Errors 8 | . . . . . . 1 1 6 . Matter Fused 7 | . . . . . . . . 6 1 Heat Flow Errors 1 | . . . . . . . . 1 . Energy Discharges 3 | . . . . . . . 1 1 1 Data Loss (minor) 4 | . . . . 1 . . . 1 2 Targeting Errors 5 | . . . . . . . . 1 4 Weapon Failures 2 | . . . . . . . . 2 . Overload Shots . | . . . . . . . . . . Overflow Damage 227 | . . 30 . . 21 . 71 . 105 Projectiles 4 | . . . . . . . 1 . 3 Explosions 111 | . . 30 . . 1 . 70 . 10 Melee 112 | . . . . . 20 . . . 92 Knockbacks 36 | . 3 3 . . 7 1 10 . 12 Impact . | . . . . . . . . . . Kinetic 33 | . 3 2 . . 7 1 10 . 10 Secondary 3 | . . 1 . . . . . . 2 Self-Inflicted Damage 428 | . . 13 . . 11 . 250 13 141 Shots 9 | . . 1 . . 1 . 5 . 2 Rammed 5 | . . . . 1 . . . 3 1 Targets Rammed 7 | . 1 . . 1 . . 1 3 1 Kicked 2 | . 1 . . . . . 1 . . Crushed . | . . . . . . . . . . Highest Temperature 556 | . 49 73 . 10 475 208 556 102 346 Average Temperature 110 | . 14 24 . 7 134 70 227 28 82 Received Heat Transfer 4117 | . 189 139 . . 1044 27 1206 255 1257 Effects 18 | . . . . . 5 . 11 . 2 Shutdowns 3 | . . . . . 2 . 1 . . Energy Bleed 1 | . . . . . . . 1 . . Interference 2 | . . . . . . . . . 2 Matter Decay 3 | . . . . . 1 . 2 . . Damage (minor) 3 | . . . . . 2 . 1 . . Damage (major) 5 | . . . . . . . 5 . . Damage (core) 1 | . . . . . . . 1 . . Siege Activations . | . . . . . . . . . . Robots Corrupted . | . . . . . . . . . . Combat Hostiles . | . . . . . . . . . . Parts Fried . | . . . . . . . . . . Impact Corruptions . | . . . . . . . . . . Robots Melted 1 | . . . . . 1 . . . . Combat Hostiles 1 | . . . . . 1 . . . . Parts Melted 6 | . . . . . 6 . . . . Heat Transferred 2938 | . . . . . 1998 555 285 50 50 Parts Sabotaged . | . . . . . . . . . . Parts Stolen . | . . . . . . . . . . Parts Stripped . | . . . . . . . . . . Power Chain Reactions 3 | . . . . . . . 2 1 . Missiles Intercepted . | . . . . . . . . . . Alert | -11 -10 -10 -10 -9 -8 -7 -7 -7 -6 ------- Run | Scr Mat Min Exi Min Mat Fac Gar Fac Fac Peak Influence 1152 | . 242 75 . 78 250 144 1152 688 456 Average Influence 303 | . 73 37 . 54 87 44 601 528 346 Maximum Alert Level 4 | . 1 . . . 1 . 4 2 2 Low Security (%) 49 | 100 95 100 . 100 96 100 16 . . Level 1 14 | . 4 . . . 3 . 13 5 84 Level 2 27 | . . . . . . . 29 94 15 Level 3 6 | . . . . . . . 32 . . Level 4 1 | . . . . . . . 7 . . Level 5 . | . . . . . . . . . . High Security . | . . . . . . . . . . Max Security . | . . . . . . . . . . Squads Dispatched 29 | . 2 . . . 2 2 . 11 12 Investigation 2 | . . . . . . . . 2 . Extermination 8 | . . . . . . 2 . 3 3 Reinforcement 10 | . 2 . . . 2 . . 2 4 Assault 1 | . . . . . . . . 1 . Garrison 8 | . . . . . . . . 3 5 Intercept . | . . . . . . . . . . Construction Impeded 3 | . . . . . 2 . . . 1 Haulers Reinforced . | . . . . . . . . . . Stealth | -11 -10 -10 -10 -9 -8 -7 -7 -7 -6 --------- Run | Scr Mat Min Exi Min Mat Fac Gar Fac Fac Distress Signals 10 | . 2 . . . 5 1 . . 2 Communications Jammed . | . . . . . . . . . . Distress Signals . | . . . . . . . . . . Times Spotted 200 | . 23 21 . 4 33 14 39 33 33 Peak Tracking Total 20 | . 3 20 . 4 7 4 10 4 6 Tactical Retreats 15 | . 1 2 . . 3 1 6 1 1 Traps | -11 -10 -10 -10 -9 -8 -7 -7 -7 -6 ------- Run | Scr Mat Min Exi Min Mat Fac Gar Fac Fac Traps Triggered 9 | . . . . 1 1 1 4 1 1 Indirectly . | . . . . . . . . . . Trap Hack Attempts . | . . . . . . . . . . Triggered . | . . . . . . . . . . Disarmed . | . . . . . . . . . . Reprogrammed . | . . . . . . . . . . Reused . | . . . . . . . . . . Traps Extracted . | . . . . . . . . . . Installed . | . . . . . . . . . . Triggered . | . . . . . . . . . . Machines | -11 -10 -10 -10 -9 -8 -7 -7 -7 -6 ---------- Run | Scr Mat Min Exi Min Mat Fac Gar Fac Fac Machines Disabled 13 | . . . . . 1 . 5 3 4 Max in Single Turn 2 | . . . . . 1 . 2 1 2 Garrison Relay 3 | . . . . . . . 3 . . Phase Generator 1 | . . . . . . . 1 . . Machines Sabotaged . | . . . . . . . . . . Garrisons Compromised . | . . . . . . . . . . Overloaded Fab Kills . | . . . . . . . . . . Fab Network Shutdowns . | . . . . . . . . . . Hacking | -11 -10 -10 -10 -9 -8 -7 -7 -7 -6 --------- Run | Scr Mat Min Exi Min Mat Fac Gar Fac Fac Machines Accessed 18 | . 3 . 1 1 3 3 . 5 2 Terminals 12 | . 3 . . . 2 2 . 4 1 Fabricators . | . . . . . . . . . . Repair Stations . | . . . . . . . . . . Recycling Units . | . . . . . . . . . . Scanalyzers 2 | . . . . . 1 . . . 1 Garrison Access 2 | . . . . . . 1 . 1 . Total Hacks 34 | . 5 . 1 1 8 4 . 11 4 Successful 20 | . 3 . 1 1 6 2 . 5 2 Failed 14 | . 2 . . . 2 2 . 6 2 Catastrophic 2 | . . . . . . 1 . 1 . Database Lockouts . | . . . . . . . . . . Manual 21 | . 3 . 1 . 3 3 . 8 3 Terminals 26 | . 5 . . . 6 3 . 9 3 Fabricators . | . . . . . . . . . . Repair Stations . | . . . . . . . . . . Recycling Units . | . . . . . . . . . . Scanalyzers 3 | . . . . . 2 . . . 1 Garrison Access 3 | . . . . . . 1 . 2 . Terminal Hacks 10 | . 3 . 1 1 4 . . 1 . Prototype ID Bank 2 | . . . . . 2 . . . . Open Door 1 | . . . . 1 . . . . . Level Access Points 1 | . . . . . . . . 1 . Alert Level 1 | . . . . . 1 . . . . Locate Traps 1 | . 1 . . . . . . . . Recall Reinforcements 2 | . 1 . . . 1 . . . . Registered Components 1 | . 1 . . . . . . . . EX-Prototype ID Bank 1 | . . . 1 . . . . . . Fabricator Hacks . | . . . . . . . . . . Repair Station Hacks . | . . . . . . . . . . Recycling Unit Hacks . | . . . . . . . . . . Scanalyzer 3 | . . . . . 2 . . . 1 Insert Component 2 | . . . . . 1 . . . 1 Analyze 1 | . . . . . 1 . . . . Garrison Access Hacks 1 | . . . . . . 1 . . . Unlock Access 1 | . . . . . . 1 . . . Unauthorized Hacks 17 | . 1 . . . . 3 . 9 4 Terminals 5 | . . . . . . 1 . 3 1 Botnet 5 | . . . . . . 1 . 3 1 Fabricators . | . . . . . . . . . . Repair Stations . | . . . . . . . . . . Recycling Units . | . . . . . . . . . . Scanalyzers . | . . . . . . . . . . Garrison Access 1 | . . . . . . . . 1 . Reprogram 1 | . . . . . . . . 1 . Data Cores Recovered . | . . . . . . . . . . Used . | . . . . . . . . . . Hacking Detections 16 | . 3 . . . 3 3 . 5 2 Full Trace Events 1 | . . . . . . . . 1 . Feedback Events 1 | . . . . . . . . 1 . Corruption 1 | . . . . . . . . 1 . Feedback Blocked . | . . . . . . . . . . Robot Schematics Acquired . | . . . . . . . . . . Robots Built . | . . . . . . . . . . Matter . | . . . . . . . . . . Time . | . . . . . . . . . . Total Robot Build Rating . | . . . . . . . . . . Part Schematics Acquired 1 | . . . . . 1 . . . . Parts Built . | . . . . . . . . . . Matter . | . . . . . . . . . . Time . | . . . . . . . . . . Total Part Build Rating . | . . . . . . . . . . Parts Repaired . | . . . . . . . . . . Time . | . . . . . . . . . . Parts Recycled . | . . . . . . . . . . Recycled Matter . | . . . . . . . . . . Retrieved Matter . | . . . . . . . . . . Retrieved Components . | . . . . . . . . . . Parts Scanalyzed 1 | . . . . . 1 . . . . Part Schematics Acquired 1 | . . . . . 1 . . . . Parts Damaged . | . . . . . . . . . . Bothacking | -11 -10 -10 -10 -9 -8 -7 -7 -7 -6 ------------ Run | Scr Mat Min Exi Min Mat Fac Gar Fac Fac Used RIF Installer 1 | . . . . . . . 1 . . Robots Hacked 20 | . . . . . . . . 10 10 Non-combat 10 | . . . . . . . . 7 3 Combat 10 | . . . . . . . . 3 7 Robot Hacks Applied 21 | . . . . . . . . 11 10 map_walls 2 | . . . . . . . . 2 . drop_inventory 2 | . . . . . . . . 2 . ignore_parts 1 | . . . . . . . . 1 . recall_investigation 1 | . . . . . . . . 1 . disrupt_area 2 | . . . . . . . . . 2 spike_heat 1 | . . . . . . . . . 1 amplify_resonance 1 | . . . . . . . . . 1 go_dormant 3 | . . . . . . . . . 3 overwrite_iff 1 | . . . . . . . . . 1 streamctrl_high 1 | . . . . . . . . 1 . formatsys_low 4 | . . . . . . . . 2 2 formatsys_high 2 | . . . . . . . . 2 . Relay Couplers Released 11 | . . . . . . . 11 . . Machine Destruction 11 | . . . . . . . 11 . . Attached 6 | . . . . . . . . 5 1 Robots Rewired . | . . . . . . . . . . Allies Hacked . | . . . . . . . . . . Hacks Repelled . | . . . . . . . . . . Allies | -11 -10 -10 -10 -9 -8 -7 -7 -7 -6 -------- Run | Scr Mat Min Exi Min Mat Fac Gar Fac Fac Total Allies 12 | . . 1 . 2 . . . 6 3 Largest Group 2 | . . 1 . 2 . . . 2 2 Highest-Rated Group 50 | . . 31 . 45 . . . 42 50 Highest-Rated Ally 32 | . . 31 . 31 . . . 26 32 Total Orders 27 | . . . . . . . . 13 14 STAY 2 | . . . . . . . . 1 1 GOTO 15 | . . . . . . . . 7 8 FOLLOW 10 | . . . . . . . . 5 5 Ally Attacks 31 | . . 12 . 1 . . . 16 2 Total Damage 475 | . . 83 . 22 . . . 245 125 Kills 4 | . . 1 . 1 . . . 1 1 Allies Corrupted . | . . . . . . . . . . Allies Melted . | . . . . . . . . . . Intel | -11 -10 -10 -10 -9 -8 -7 -7 -7 -6 ------- Run | Scr Mat Min Exi Min Mat Fac Gar Fac Fac Robot Analysis Total . | . . . . . . . . . . Derelict Logs Recovered 2 | . . 1 . 1 . . . . . Drone Launches 6 | . . . . . . . . . 6 Drone Recoveries . | . . . . . . . . . . Exploration | -11 -10 -10 -10 -9 -8 -7 -7 -7 -6 ------------- Run | Scr Mat Min Exi Min Mat Fac Gar Fac Fac Turns Passed 9753 | 5 925 383 328 441 1317 1386 1942 1950 1076 Spaces Moved 5410 | 5 535 188 219 279 652 956 956 1082 538 Core 10 | . . . . . 1 . . . 9 Treads 13 | . . . . . . . . . 13 Legs 5064 | 5 535 188 219 279 651 956 956 759 516 Wheels . | . . . . . . . . . . Hover 323 | . . . . . . . . 323 . Flight . | . . . . . . . . . . Fastest Speed 100 | 120 120 150 150 150 120 120 120 100 127 Average Speed 138 | 120 135 150 150 150 148 120 150 132 137 Slowest Speed 800 | 120 150 150 150 150 800 120 240 360 750 Overloaded Moves . | . . . . . . . . . . Propulsion Burnouts . | . . . . . . . . . . Robots Hopped . | . . . . . . . . . . Cave-ins Triggered . | . . . . . . . . . . Exploration Rate (%) 45 | 2 77 36 60 75 47 20 88 30 17 Regions Visited 9 Branch Regions 3 Pre-discovered Areas 1 | . . 1 . . . . . . . Known Exits Taken 3 | . . . . . 1 1 . 1 . Unknown Exits Taken 5 | 1 1 1 1 1 . . . . . Scrap Searched 1 | . . . . 1 . . . . . Spaces Dug 20 | . . . . . . 5 . 6 9 Terrain Destroyed 326 | . . 27 . 7 44 5 136 24 83 Melee 20 | . . . . . . 5 . 6 9 Projectile 44 | . . . . . 10 . 14 11 9 AOE 262 | . . 27 . 7 34 . 122 7 65 Actions | -11 -10 -10 -10 -9 -8 -7 -7 -7 -6 --------- Run | Scr Mat Min Exi Min Mat Fac Gar Fac Fac Total 6942 | 4 642 240 219 301 860 1171 1316 1462 727 Wait 591 | . 13 8 . 8 44 125 174 194 25 Move 5402 | 4 534 187 218 278 651 956 955 1081 538 Hop . | . . . . . . . . . . Pick Up 156 | . 16 5 1 5 30 26 33 25 15 Fast Attach 22 | . 1 . . . 5 . 6 9 1 Attach 67 | . 2 4 . 1 19 3 18 6 14 Detach 7 | . . . . . 4 1 1 . 1 Swap 94 | . 5 5 . 2 13 6 13 31 19 Drop 129 | . 11 3 . 5 17 26 18 32 17 Fire 391 | . 59 28 . 1 62 23 68 74 76 Melee 52 | . . . . . 15 5 9 6 17 Ram 3 | . . . . . . . . 3 . Kick 3 | . 1 . . 1 . . 1 . . Crush 1 | . . . . . . . . . 1 Escape Stasis 20 | . . . . . . . 20 . . Rewire 1 | . . . . . . . . 1 . Trap . | . . . . . . . . . . Miscellaneous 3 | . . . . . . . . . 3 Route ------- -11/Scrapyard -10/Materials (discovered 4 exits: [*Mat x3] / [*Min]) -10/Mines -10/Exiles (discovered 2 exits: *Min x2) -9/Mines -8/Materials -7/Factory -7/Garrison (discovered 3 exits: *Fac x3) -7/Factory (discovered 4 exits: *Fac x4) -6/Factory History --------- Turn | Location | Event 1 | -11/Scrapyard | Discovered new exit (range 3) 6 | -11/Scrapyard | Entered Materials 15 | -10/Materials | Discovered new exit (range 15) 102 | -10/Materials | Discovered new exit (range 3) 251 | -10/Materials | Discovered new exit (range 10) 324 | -10/Materials | Build established: Mutant 571 | -10/Materials | Discovered new exit (range 4) 931 | -10/Materials | Entered Mines 938 | -10/Mines | Received a Rocket Launcher from a helpful Derelict 965 | -10/Mines | Learned location of Recycling (-9) 1078 | -10/Mines | Escorted by a lone wolf Derelict 1166 | -10/Mines | Assembled infested the area 1221 | -10/Mines | Core integrity fell below 50% 1246 | -10/Mines | Destroyed 16 combat bots 1247 | -10/Mines | Lost 3 parts (2n1w) 1308 | -10/Mines | Deemed a non-threat by the Exiles lab entrance 1308 | -10/Mines | Discovered new exit (range 5) 1313 | -10/Mines | Build established: Scavenger-Mutant 1314 | -10/Mines | Entered Exiles 1337 | -10/Exiles | Discovered new exit (range 15) 1352 | -10/Exiles | Met 8R-AWN 1377 | -10/Exiles | Met EX-HEX 1422 | -10/Exiles | Met EX-BIN 1448 | -10/Exiles | Aligned with FarCom system 1449 | -10/Exiles | Given EX-Vault access code 1493 | -10/Exiles | Opened EX-Vault 1500 | -10/Exiles | Found Modified TNC 1533 | -10/Exiles | Warned to stay clear of 0b10 Research branches 1575 | -10/Exiles | Met EX-DEC 1624 | -10/Exiles | Discovered new exit (range 14) 1642 | -10/Exiles | Left Exiles lab with Modified TNC 1642 | -10/Exiles | Entered Mines 1795 | -9/Mines | Discovered new exit (range 9) 1891 | -9/Mines | Learned location of 1 exit from Materials 1894 | -9/Mines | Met a Derelict who couldn't figure out how to use a Trap Extractor 2083 | -9/Mines | Entered Materials 2083 | -8/Materials | Evolved 4 slots: Propulsion x1, Utility x2, Weapon x1 2084 | -8/Materials | Identified exit to Factory 2391 | -8/Materials | Lost 6 parts (1p3n1u1w) 2523 | -8/Materials | Lost 8 parts (1p2n1u4w) 3001 | -8/Materials | Core integrity fell below 50% 3400 | -8/Materials | Entered Factory 3400 | -7/Factory | Evolved 2 slots: Propulsion x1, Utility x1 3440 | -7/Factory | Build established: Mutant 4786 | -7/Factory | Identified exit to Garrison 4786 | -7/Factory | Entered Garrison 5034 | -7/Garrison | Triggered checkpoint 5150 | -7/Garrison | Lost 4 parts (1p2n1u) 5229 | -7/Garrison | Garrison Relay disabled 5266 | -7/Garrison | Triggered checkpoint 5371 | -7/Garrison | Triggered checkpoint 5372 | -7/Garrison | Triggered checkpoint 5381 | -7/Garrison | Triggered checkpoint 5409 | -7/Garrison | Core integrity fell below 50% 5427 | -7/Garrison | Destroyed 9 combat bots 5475 | -7/Garrison | Lost 12 parts (1p4n1u6w) 5715 | -7/Garrison | Discovered new exit (range 14) 5779 | -7/Garrison | Phase Generator disabled 5877 | -7/Garrison | Build established: Scavenger-Skirmisher 6138 | -7/Garrison | Discovered new exit (range 8) 6194 | -7/Garrison | Triggered checkpoint 6232 | -7/Garrison | Garrison Relay disabled 6484 | -7/Garrison | Triggered checkpoint 6619 | -7/Garrison | Garrison Relay disabled 6687 | -7/Garrison | Discovered new exit (range 14) 6721 | -7/Garrison | Installed Relay Interface Framework 6728 | -7/Garrison | Entered Factory 7013 | -7/Factory | Build established: Bothacker-Mutant 7557 | -7/Factory | Core integrity fell below 20% 7593 | -7/Factory | Lost 3 parts (2n1u) 7928 | -7/Factory | First assault squad dispatched 8106 | -7/Factory | Identified exit to Factory 8116 | -7/Factory | Garrison activated, responded to threat 8678 | -7/Factory | Entered another Factory area 8678 | -6/Factory | Accompanied by 1 ally 8678 | -6/Factory | Evolved 2 slots: Utility x2 9200 | -6/Factory | Garrison activated, responded to threat 9638 | -6/Factory | Garrison activated, responded to threat 9676 | -6/Factory | Core integrity fell below 50% 9717 | -6/Factory | Lost 19 parts (1p6n4u8w) 9722 | -6/Factory | Core integrity fell below 20% 9754 | -6/Factory | Destroyed by P-60 Hacker with Shock Rifle Last Messages --------------- 09698_ K-01 Serf collects debris. 09701_ K-01 Serf cleans the Terminal. 09706_ K-01 Serf collects debris. 09718_ Triggered Shock Trap. 09718_ The floor emits a surge of raw power. 09718_ System corrupted (+2). 09718_ Critical hit. 09718_ Mni. Assault Cannon destroyed. 09721_ U-05 Engineer lays Concrete. 09721_ K-01 Serf collects debris. 09731_ G-50 Soldier suffers critical hit. 09731_ G-50 Soldier destroyed. 09731_ K-01 Serf collects debris. 09733_ P-60 Hacker resets U-05 Engineer, system corruption cleaned. 09734_ Acquired Carbon-fiber Leg. 09735_ Acquired 38 matter. 09735_ K-01 Serf collects debris. 09741_ System corrupted: Component data lost. 09741_ K-01 Serf collects debris. [Achievement: Tester] Map ----- +----------------------------------------------------+ | ?????????????????????????????????????????????????? | | ?????????????????????????????????????????????????? | | ?????????????????????????????????????????????????? | | ?????????????????????????????????????????????????? | | ?????????????????????????????????????????????????? | | ?????????????????????????????????????????????????? | | ?????????????????????????????????????????????????? | | ?????????????????????????????????????????????????? | | ?????????????????????????????????????????????????? | | ????????????????????????? ?????????????????????? | | ????????????????????????? ???????????????????? | | ?????????????###????????? #??????????????????? | | ?????????????# #????????? #??????????????????? | | ????????????## #????????? #??????????????????? | | ????????????# ####?????? #??????????????????? | | ??????????### ###???? #??????????????????? | | ?????????######"""" #???# #?????? ???????????? | | ?????????# " ##??# #???? ????????????? | | ?????????# " ##?# t #??? ?????????????? | | ?????????# # #?# ###t#####??????????? | | ?????????# # #??# R ?????????? | | ?????????# # #??# ???????????? | | ?????????# #??# ?????????????? | | ?????????# ##### """ ""?????????????? | | ?????????# # """^"""????????????? | | ????###### % " #####@ """ """ ""?????????? | | ??""T"""######+##########p ????????? | | ] ! R """ """ ""?????????? | | [ ^ w """ """????????????? | | ^ """ """ """????????? | | """ """ ^Y u ??????? | | ?"" """ """%% ^ u * ??????? | | ?"" """ ############+############????????? | | ???? ##????# #?????????????? | | ??? """ """ #?????# """" #?????######### | | ??? """ """ #?????# ""S"" #????# | | ?????"" """ #?????# "" "" #????# | | ????? ?? #?????# #????# | | ?????? ?? #?????# #????# | | ????????"" """###?????# """""" #????# | | ?????????"G"""????????# """""" #????# | | ??????????????????????# ! """""" #????# | | ??????????????????????# """""" #????# | | ??????????????????????# #????# | | ??????????????????????# #????# ? | | ??????????????????###############+##????# ??? | | ??????????????????# ! # #?????# ????? | | ??????????????????# """" * # ########+####### | | ??????????????????# "F " # | | ??????????????????# """ # | +----------------------------------------------------+ Best States ------------- Heat Dissipation 48 Energy Generation 18 Energy Capacity 265 Matter Stores 300 Matter Capacity 300 Sight Range 16 Terrain Scan Density 10 Base Temperature (-) 100 Armor Coverage 600 Resistance: EM 20 Utility Shielding 66 Weapon Cycling 15 Evasion (%) 40 Recoil Reduction 2 Item Schematics ----------------- Adv. Beam Rifle | -8/Materials | Scanalyzed Robot Schematics ------------------ None Fabricated ------------ Nothing Alien Tech Used ----------------- None Achievements -------------- Tester Challenges ------------ None Game ------ Seed NovaThunderMace Manual? 0 Play Time 02:29:18 Cumulative 79.9 hours Start 2019.12.31 @ 11:41:07 End 2019.12.31 @ 17:26:58 Sessions 3 Manual Loads 0 Difficulty Rogue Special Mode None Game No. 76 Rogue 76 Adventurer 0 Explorer 0 Win Type - Total 0 Types 0/0/0/0/0/0/0 Lore% 45 Gallery% 50 Achievement% 38 Wizard Run 0 Options --------- ASCII 0 Keyboard 1 Movement Numpad Keybinds 0 Fullscreen 2 Font 18/Terminus Map View 76x50 Tactical HUD 1 Map Filters NONE Filters NONE Steam 1 RUN: 6b3addba-ea45-4913-996d-d350244aadd5